bitfinex-derivatives/quotes_BTCF0:USTF0_20210703
["timestamp","ask_amount","ask_price","bid_price","bid_amount"]
[1625308997647,1.02233862,34651.0,34650.0,0.48115088]
[1625308997798,1.02233862,34651.0,34650.0,0.59915088]
[1625308998047,1.02233862,34651.0,34650.0,1.70190706]
[1625308998600,1.02233862,34651.0,34650.0,2.69323682]
[1625308998750,1.02233862,34651.0,34650.0,2.75223682]
[1625308999151,1.02259492,34652.0,34650.0,2.69323682]
[1625308999602,1.19299901,34653.0,34651.0,1.161815]
[1625308999902,1.19299901,34653.0,34652.0,0.00541577]
[1625309000004,1.19299901,34653.0,34652.0,0.06441577]
[1625309000152,1.19299901,34653.0,34652.0,0.89031871]
[1625309000254,1.19299901,34653.0,34652.0,0.94931871]
[1625309000605,2.21529055,34653.0,34652.0,0.94931871]
[1625309001956,1.02229154,34653.0,34652.0,1.27962393]
[1625309002456,1.02229154,34653.0,34652.0,1.22062393]
[1625309002555,1.02229154,34653.0,34652.0,1.27962393]
[1625309002706,1.02229154,34653.0,34652.0,1.22062393]
[1625309002806,1.02229154,34653.0,34652.0,1.27962393]
[1625309003616,1.02157004,34654.0,34652.0,1.27962393]
[1625309004119,1.02153648,34656.0,34653.0,2.15066155]
[1625309004216,1.02153648,34656.0,34653.0,2.43215155]
[1625309004317,1.02153648,34656.0,34653.0,2.49115155]
[1625309004518,1.02153648,34656.0,34654.0,0.0862]
[1625309004619,1.02153648,34656.0,34654.0,0.20961291]
[1625309004819,0.98313648,34656.0,34654.0,0.20961291]
[1625309004923,0.61203648,34656.0,34655.0,0.8255115]
[1625309005024,0.61203648,34656.0,34655.0,0.8845115]
[1625309005123,0.61203648,34656.0,34655.0,0.94892406]
[1625309005322,0.58203648,34656.0,34655.0,0.94892406]
[1625309005423,1.19165397,34660.0,34655.0,1.27912178]
[1625309005725,1.53207791,34665.0,34655.0,1.27912178]
[1625309005726,1.19084942,34663.0,34659.0,1.30549157]
[1625309005826,1.19084942,34663.0,34659.0,1.36449157]
[1625309005926,1.19084942,34663.0,34659.0,1.42349157]
[1625309006027,1.19084942,34663.0,34662.0,4.4287]
[1625309006127,1.19084755,34664.0,34662.0,4.78706]
[1625309006428,1.19084755,34664.0,34662.0,4.84606]
[1625309007081,1.19078267,34665.0,34662.0,0.49973903]
[1625309007579,1.18974043,34667.0,34662.0,0.49973903]
[1625309007681,1.18974043,34667.0,34666.0,0.48115088]
[1625309009186,1.18974043,34667.0,34666.0,0.72682088]
[1625309009984,1.18887205,34668.0,34666.0,0.72682088]
[1625309010384,1.18887205,34668.0,34666.0,0.48115088]
[1625309010885,1.35870005,34669.0,34666.0,0.48115088]
[1625309010886,1.42223248,34667.0,34666.0,0.48115088]
[1625309014995,1.18887248,34667.0,34666.0,0.48115088]
[1625309015697,1.1875021,34668.0,34666.0,0.48115088]
[1625309015896,1.2465021,34668.0,34666.0,0.48115088]
[1625309016146,0.059,34668.0,34666.0,0.48115088]
[1625309016646,1.24612188,34668.0,34666.0,0.48115088]
[1625309016798,1.18712188,34668.0,34666.0,0.48115088]
[1625309017147,1.24612188,34668.0,34666.0,0.48115088]
[1625309017247,1.18712188,34668.0,34666.0,0.48115088]
[1625309017349,1.24612188,34668.0,34666.0,0.48115088]
[1625309017447,0.67838997,34667.0,34666.0,0.48115088]
[1625309017547,0.96349997,34667.0,34666.0,0.48115088]
[1625309018902,2.15032331,34667.0,34666.0,0.48115088]
[1625309018999,1.86521331,34667.0,34666.0,0.48115088]
[1625309019353,0.67838997,34667.0,34666.0,0.48115088]
[1625309024160,0.91734997,34667.0,34666.0,0.48115088]
[1625309024713,2.10371247,34667.0,34666.0,0.48115088]
[1625309024913,2.16271247,34667.0,34666.0,0.48115088]
[1625309025011,2.22171247,34667.0,34666.0,0.48115088]
[1625309025564,2.22171247,34667.0,34659.0,0.48115088]
[1625309025869,0.48115088,34660.0,34659.0,0.24057544]
[1625309025964,0.77954088,34660.0,34659.0,0.24057544]
[1625309026165,0.72054088,34660.0,34659.0,0.24599395]
[1625309026266,1.39867568,34660.0,34659.0,0.24599395]
[1625309026617,1.39867568,34660.0,34659.0,0.30499395]
[1625309026867,0.72054088,34660.0,34659.0,0.30499395]
[1625309026968,0.48115088,34660.0,34659.0,0.30499395]
[1625309027066,0.48115088,34660.0,34659.0,0.36399395]
[1625309027820,0.24057544,34660.0,34659.0,0.36399395]
[1625309028017,0.24057544,34660.0,34659.0,0.30499395]
[1625309028968,0.24057544,34660.0,34659.0,0.36399395]
[1625309029068,1.18655836,34668.0,34659.0,0.36399395]
[1625309029222,1.18655836,34668.0,34659.0,0.65013395]
[1625309029570,0.24057544,34669.0,34660.0,0.00541768]
[1625309029668,0.24057544,34669.0,34660.0,0.06441768]
[1625309029769,0.24057544,34669.0,34660.0,0.12341768]
[1625309029869,0.29957544,34669.0,34668.0,0.24057544]
[1625309029969,0.35857544,34669.0,34668.0,0.24057544]
[1625309030820,0.29957544,34669.0,34668.0,0.24057544]
[1625309031070,0.35857544,34669.0,34659.0,0.08201513]
[1625309031170,0.3117498,34669.0,34658.0,0.6311206]
[1625309031320,0.3707498,34669.0,34661.0,0.059]
[1625309031421,0.29957544,34669.0,34661.0,0.059]
[1625309031722,1.18689239,34668.0,34662.0,0.00541791]
[1625309031874,0.24057544,34663.0,34662.0,0.00541791]
[1625309036183,0.25274212,34663.0,34659.0,0.00542202]
[1625309036434,0.24057544,34663.0,34659.0,0.00542202]
[1625309037884,0.24057544,34660.0,34659.0,0.00542202]
[1625309041692,0.29957544,34660.0,34659.0,0.00542202]
[1625309041943,0.59915088,34660.0,34659.0,0.00542202]
[1625309042395,0.54015088,34660.0,34659.0,0.00542202]
[1625309042596,0.59915088,34660.0,34659.0,0.00542202]
[1625309042744,0.59915088,34660.0,34658.0,0.00542144]
[1625309044296,0.54015088,34660.0,34658.0,0.00542144]
[1625309044646,0.59915088,34660.0,34658.0,0.00542144]
[1625309044746,0.54015088,34660.0,34658.0,0.00542144]
[1625309045648,0.54015088,34660.0,34658.0,0.08815812]
[1625309045949,0.54015088,34660.0,34659.0,0.00542132]
[1625309046250,0.59915088,34660.0,34659.0,0.00542132]
[1625309046802,0.54015088,34660.0,34659.0,0.00542132]
[1625309048305,0.54015088,34660.0,34659.0,0.08828053]
[1625309048405,0.59915088,34660.0,34659.0,0.08828053]
[1625309048604,0.54015088,34660.0,34659.0,0.08828053]
[1625309048955,0.59915088,34660.0,34659.0,0.08828053]
[1625309049205,0.54015088,34660.0,34659.0,0.08828053]
[1625309049455,0.54015088,34660.0,34659.0,0.83554035]
[1625309049906,0.54015088,34660.0,34659.0,1.07611579]
[1625309050310,0.54015088,34660.0,34659.0,0.74406818]
[1625309050659,0.54015088,34660.0,34659.0,1.4087913]
[1625309051109,0.54015088,34660.0,34659.0,1.6669813]
[1625309051562,1.56207078,34660.0,34659.0,2.66509737]
[1625309051961,0.54015088,34660.0,34659.0,2.66509737]
[1625309053466,1.56280706,34660.0,34659.0,2.66509737]
[1625309053865,1.56280706,34660.0,34659.0,3.83060792]
[1625309054467,1.56280706,34660.0,34659.0,2.66509737]
[1625309054917,1.56280706,34660.0,34659.0,3.83198464]
[1625309055419,0.54015088,34660.0,34659.0,3.83198464]
[1625309055874,1.56340558,34660.0,34659.0,5.16701648]
[1625309056320,1.56340558,34660.0,34659.0,3.83198464]
[1625309057373,1.56340558,34660.0,34659.0,5.1676353]
[1625309065637,1.56340558,34660.0,34659.0,6.67471659]
[1625309068245,1.56340558,34660.0,34659.0,6.73371659]
[1625309068698,0.54015088,34660.0,34659.0,6.73371659]
[1625309069351,0.54015088,34660.0,34659.0,6.41652659]
[1625309069900,4.25815088,34660.0,34659.0,6.41652659]
[1625309070001,4.31715088,34660.0,34659.0,6.41652659]
[1625309070152,4.25815088,34660.0,34659.0,6.41652659]
[1625309070254,6.47886207,34660.0,34659.0,4.9094453]
[1625309070353,2.81986207,34660.0,34659.0,4.9094453]
[1625309070551,2.76086207,34660.0,34659.0,4.9094453]
[1625309070651,2.81986207,34660.0,34659.0,4.9094453]
[1625309071002,4.12749466,34660.0,34659.0,4.9094453]
[1625309071101,4.18649466,34660.0,34659.0,4.9094453]
[1625309071200,4.12749466,34660.0,34659.0,4.9094453]
[1625309072004,4.18649466,34660.0,34659.0,4.9094453]
[1625309072102,2.76086207,34660.0,34659.0,4.9094453]
[1625309075307,2.76086207,34660.0,34659.0,5.1204553]
[1625309075808,2.76086207,34660.0,34659.0,6.63026279]
[1625309075809,1.56510764,34660.0,34659.0,6.63026279]
[1625309076409,1.56510764,34660.0,34659.0,5.1204553]
[1625309078415,1.56510764,34660.0,34659.0,6.63186132]
[1625309078916,2.76082037,34660.0,34659.0,5.1204553]
[1625309079064,2.76082037,34660.0,34659.0,4.9094453]
[1625309080368,1.56510764,34660.0,34659.0,6.71388811]
[1625309082674,2.76081024,34660.0,34659.0,5.1995553]
[1625309090240,2.76081024,34660.0,34659.0,4.9094453]
[1625309090489,1.56510764,34660.0,34659.0,4.9094453]
[1625309094148,1.56510764,34660.0,34659.0,6.42109532]
[1625309094296,1.56510764,34660.0,34659.0,6.48009532]
[1625309094597,0.54015088,34660.0,34659.0,6.48009532]
[1625309094696,0.54015088,34660.0,34659.0,11.10624284]
[1625309095248,0.29957544,34660.0,34659.0,6.48864284]
[1625309095750,0.29957544,34660.0,34659.0,6.48009532]
[1625309096050,0.29957544,34660.0,34659.0,6.48864272]
[1625309096200,0.059,34660.0,34659.0,6.72921816]
[1625309096452,0.059,34660.0,34659.0,8.4055653]
[1625309096551,0.059,34660.0,34659.0,8.3970179]
[1625309097002,0.059,34660.0,34659.0,6.72067076]
[1625309104174,0.059,34660.0,34659.0,6.91910076]
[1625309108877,0.059,34660.0,34659.0,6.67852532]
[1625309109030,0.059,34660.0,34659.0,6.48009532]
[1625309110382,0.29957544,34660.0,34659.0,6.48009532]
[1625309121255,0.29957544,34660.0,34659.0,6.48864255]
[1625309129522,0.29957544,34660.0,34659.0,1.82519401]
[1625309129824,0.29957544,34660.0,34659.0,6.52799918]
[1625309131328,0.059,34660.0,34659.0,6.52799918]
[1625309131427,1.02392995,34664.0,34659.0,6.52799918]
[1625309131528,1.02392995,34664.0,34659.0,6.58699918]
[1625309131829,1.02392995,34664.0,34661.0,4.6489]
[1625309131978,0.96442995,34664.0,34661.0,5.02248]
[1625309132079,1.26435965,34667.0,34663.0,6.20832949]
[1625309132328,1.26435965,34667.0,34663.0,6.26732949]
[1625309132430,1.26435965,34667.0,34664.0,0.00541955]
[1625309132530,1.26435965,34667.0,34666.0,4.17256048]
[1625309132632,1.26435965,34667.0,34666.0,4.23156048]
[1625309132779,1.26435965,34667.0,34666.0,4.17256048]
[1625309132982,1.26435965,34667.0,34666.0,4.17798003]
[1625309133381,1.26435965,34667.0,34666.0,4.23698003]
[1625309133583,1.26435965,34667.0,34666.0,4.17798003]
[1625309134282,1.26435965,34667.0,34666.0,4.23698003]
[1625309134984,0.24057544,34667.0,34666.0,4.17798003]
[1625309135135,0.24057544,34667.0,34666.0,4.23698003]
[1625309135437,1.19428556,34670.0,34666.0,4.23698003]
[1625309135686,1.15428556,34670.0,34666.0,4.29598003]
[1625309135836,1.15428556,34670.0,34667.0,0.00541953]
[1625309135935,0.24057544,34671.0,34669.0,3.69270134]
[1625309136036,0.24057544,34671.0,34669.0,3.89224134]
[1625309136136,0.24057544,34671.0,34669.0,3.95124134]
[1625309136235,0.93431862,34673.0,34669.0,4.01024134]
[1625309136485,0.93431862,34673.0,34670.0,0.00541922]
[1625309136586,0.93431862,34673.0,34672.0,0.48115088]
[1625309136685,0.93431862,34673.0,34672.0,0.54015088]
[1625309136786,1.60484484,34676.0,34672.0,0.54015088]
[1625309136986,1.60484484,34676.0,34672.0,0.5455699]
[1625309137238,1.66384484,34676.0,34673.0,0.00541902]
[1625309137537,1.72284484,34676.0,34673.0,0.00541902]
[1625309137990,0.35857544,34676.0,34675.0,1.17394333]
[1625309138236,4.49177544,34676.0,34675.0,1.17936336]
[1625309138491,0.35857544,34676.0,34675.0,1.17936336]
[1625309138588,0.59915088,34676.0,34675.0,1.17936336]
[1625309138938,3.49846921,34676.0,34675.0,0.08946023]
[1625309139239,3.49846921,34676.0,34675.0,0.00542003]
[1625309139591,3.51063298,34676.0,34675.0,0.00542003]
[1625309140691,3.78872298,34676.0,34674.0,0.08405397]
[1625309140891,0.01216492,34675.0,34674.0,0.08405397]
[1625309141042,0.13016492,34675.0,34674.0,0.08405397]
[1625309141141,3.02997499,34675.0,34671.0,0.0841731]
[1625309141441,0.01216813,34674.0,34672.0,0.00541954]
[1625309141540,0.13016813,34674.0,34672.0,0.00541954]
[1625309141742,0.13016813,34674.0,34668.0,0.67338484]
[1625309141942,0.01216827,34673.0,34669.0,0.00541963]
[1625309142093,0.07116827,34673.0,34669.0,0.00541963]
[1625309142193,0.13016827,34673.0,34669.0,0.00541963]
[1625309142293,3.03022387,34673.0,34668.0,8.484e-05]
[1625309142493,0.01218413,34672.0,34668.0,8.484e-05]
[1625309142594,0.48115088,34669.0,34668.0,8.484e-05]
[1625309142694,0.85287088,34669.0,34668.0,8.484e-05]
[1625309142794,3.75302896,34669.0,34667.0,0.00541138]
[1625309143344,2.90045552,34668.0,34667.0,0.00541138]
[1625309143446,3.01845552,34668.0,34667.0,0.00541138]
[1625309144550,3.25903096,34668.0,34667.0,0.00541138]
[1625309144700,3.25903096,34668.0,34662.0,0.00541166]
[1625309144900,3.25903096,34668.0,34661.0,0.00541173]
[1625309145251,1.36490848,34663.0,34661.0,0.00541173]
[1625309145400,1.42390848,34663.0,34661.0,0.00541173]
[1625309145753,1.36507297,34662.0,34661.0,0.00541173]
[1625309145903,1.68356297,34662.0,34661.0,0.00541173]
[1625309146555,0.79964088,34662.0,34661.0,0.00541173]
[1625309147557,2.16469041,34662.0,34661.0,0.00541173]
[1625309148109,0.79964088,34662.0,34661.0,0.00541173]
[1625309148410,0.85864088,34662.0,34661.0,0.00541173]
[1625309148612,2.22363525,34662.0,34661.0,0.00541173]
[1625309148861,2.22363525,34662.0,34660.0,0.00541173]
[1625309149162,4.7687,34661.0,34660.0,0.00541173]
[1625309149361,4.8867,34661.0,34660.0,0.00541173]
[1625309153516,0.118,34661.0,34660.0,0.00541173]
[1625309154468,0.118,34661.0,34660.0,0.25019173]
[1625309154617,0.118,34661.0,34660.0,1.59726915]
[1625309155269,4.74166,34661.0,34660.0,1.59726915]
[1625309155368,4.74166,34661.0,34659.0,1.34741153]
[1625309155717,1.36482569,34660.0,34656.0,1.51603134]
[1625309155818,1.36482569,34660.0,34655.0,1.3487607]
[1625309155920,1.42382569,34660.0,34655.0,1.3487607]
[1625309156018,0.118,34660.0,34656.0,0.00540289]
[1625309156319,0.118,34660.0,34654.0,0.00540329]
[1625309156570,0.118,34660.0,34652.0,1.51735579]
[1625309156671,0.48115088,34655.0,34652.0,1.51735579]
[1625309156775,0.48115088,34655.0,34649.0,1.17994136]
[1625309156920,0.59915088,34655.0,34649.0,1.17994136]
[1625309157273,0.59915088,34655.0,34645.0,0.24057544]
[1625309157274,4.09349079,34654.0,34648.0,1.42088846]
[1625309157372,4.35759079,34654.0,34648.0,1.42088846]
[1625309157473,4.47559079,34654.0,34648.0,1.42088846]
[1625309157775,0.78347676,34649.0,34648.0,1.42088846]
[1625309157974,0.90147676,34649.0,34648.0,1.42088846]
[1625309158225,0.90147676,34649.0,34648.0,1.42629218]
[1625309158428,0.90147676,34649.0,34648.0,0.24597916]
[1625309158675,1.0830522,34649.0,34648.0,0.24597916]
[1625309158927,0.29957544,34649.0,34648.0,0.24597916]
[1625309159177,0.65823544,34649.0,34648.0,0.24597916]
[1625309159278,0.65823544,34649.0,34648.0,0.24057544]
[1625309160381,0.65823544,34649.0,34645.0,0.24057544]
[1625309160631,0.24057544,34646.0,34645.0,0.24057544]
[1625309160732,0.35857544,34646.0,34645.0,0.24057544]
[1625309162286,0.35857544,34646.0,34641.0,1.58669322]
[1625309162737,1.38002609,34646.0,34644.0,1.00922352]
[1625309163439,1.38002609,34646.0,34643.0,1.00902801]
[1625309163989,0.35857544,34646.0,34643.0,1.00902801]
[1625309164790,0.54015088,34644.0,34643.0,1.00902801]
[1625309164890,0.59915088,34644.0,34643.0,1.00902801]
[1625309165640,0.59915088,34644.0,34641.0,1.0073367]
[1625309166092,0.59915088,34644.0,34638.0,1.3431156]
[1625309166093,0.54015088,34644.0,34642.0,1.20006441]
[1625309166444,0.54015088,34644.0,34643.0,1.00673841]
[1625309166994,0.54015088,34644.0,34643.0,1.0121449]
[1625309167594,0.54015088,34644.0,34643.0,1.0711449]
[1625309167745,0.54015088,34644.0,34643.0,1.0121449]
[1625309167948,0.54015088,34644.0,34643.0,2.35078609]
[1625309168396,0.54015088,34644.0,34643.0,1.0121449]
[1625309168799,0.59915088,34644.0,34643.0,1.0121449]
[1625309168906,0.54015088,34644.0,34643.0,1.0121449]
[1625309170348,0.54015088,34644.0,34643.0,0.00540649]
[1625309170947,0.59915088,34644.0,34643.0,0.00540649]
[1625309171248,0.59915088,34644.0,34643.0,1.00675218]
[1625309171651,0.59915088,34644.0,34643.0,0.00540649]
[1625309171750,0.59915088,34644.0,34640.0,1.00166685]
[1625309171905,0.85774088,34644.0,34640.0,1.00166685]
[1625309172601,0.85774088,34644.0,34639.0,1.00200542]
[1625309172752,0.48115088,34640.0,34639.0,1.00200542]
[1625309172903,4.69385088,34640.0,34639.0,1.00200542]
[1625309173001,4.75285088,34640.0,34639.0,1.00200542]
[1625309173103,4.75285088,34640.0,34639.0,0.00540744]
[1625309173556,4.75285088,34640.0,34637.0,0.00540758]
[1625309173854,4.75285088,34640.0,34636.0,1.00289343]
[1625309174004,4.75285088,34640.0,34632.0,1.62949145]
[1625309174005,4.75285088,34640.0,34635.0,1.00271168]
[1625309174455,4.75285088,34640.0,34632.0,1.00402988]
[1625309174804,0.72172632,34633.0,34632.0,1.00402988]
[1625309174905,1.01207632,34633.0,34632.0,1.00402988]
[1625309175206,1.01207632,34633.0,34632.0,1.00943787]
[1625309175558,1.01207632,34633.0,34632.0,0.00540799]
[1625309175956,1.01207632,34633.0,34631.0,0.0054033]
[1625309177006,1.07107632,34633.0,34631.0,0.0054033]
[1625309177306,1.07107632,34633.0,34630.0,1.00365889]
[1625309177558,1.07107632,34633.0,34628.0,1.0045352]
[1625309178814,0.24057544,34629.0,34628.0,1.0045352]
[1625309178922,0.29957544,34629.0,34628.0,1.0045352]
[1625309179121,0.29957544,34629.0,34628.0,1.00993893]
[1625309179374,0.35857544,34629.0,34628.0,1.00993893]
[1625309179477,0.35857544,34629.0,34628.0,1.0045352]
[1625309179623,0.35857544,34629.0,34627.0,1.00473617]
[1625309180373,0.35857544,34629.0,34625.0,0.2929]
[1625309180925,0.74804088,34626.0,34625.0,0.2929]
[1625309181374,3.7508,34624.0,34623.0,1.00672871]
[1625309181575,3.8098,34624.0,34623.0,1.00672871]
[1625309181775,0.68904088,34626.0,34623.0,1.00672871]
[1625309181883,0.68904088,34626.0,34616.0,1.51009306]
[1625309181884,0.48115088,34626.0,34620.0,1.00677299]
[1625309181977,0.48115088,34626.0,34620.0,1.27450299]
[1625309182076,0.48115088,34626.0,34623.0,0.00540345]
[1625309182376,0.48115088,34626.0,34621.0,1.0120042]
[1625309182477,0.48115088,34626.0,34621.0,1.0710042]
[1625309182679,0.48115088,34626.0,34623.0,1.00569879]
[1625309183131,0.48115088,34626.0,34624.0,1.0106352]
[1625309183332,0.48115088,34626.0,34624.0,1.0696352]
[1625309183431,0.48115088,34626.0,34625.0,0.00540291]
[1625309183633,0.48115088,34626.0,34625.0,0.06440291]
[1625309184285,0.48115088,34626.0,34625.0,0.00540291]
[1625309185239,0.48115088,34626.0,34624.0,0.00540337]
[1625309185540,0.48115088,34626.0,34625.0,0.00540343]
[1625309185689,0.54015088,34626.0,34625.0,0.00540343]
[1625309185789,0.54015088,34626.0,34623.0,0.00540343]
[1625309186039,0.54015088,34626.0,34625.0,0.00540345]
[1625309186291,0.54015088,34626.0,34622.0,0.00540345]
[1625309186642,0.54015088,34626.0,34625.0,0.0054034]
[1625309186891,0.54015088,34626.0,34622.0,1.01189388]
[1625309186992,0.54015088,34626.0,34622.0,0.0054034]
[1625309187092,0.54015088,34626.0,34623.0,0.00540347]
[1625309187344,0.54015088,34626.0,34622.0,0.00540343]
[1625309188848,0.24057544,34623.0,34622.0,0.00540343]
[1625309188946,0.29957544,34623.0,34622.0,0.00540343]
[1625309189449,0.24057544,34623.0,34622.0,0.00540343]
[1625309189898,0.24057544,34623.0,34621.0,1.00688762]
[1625309189998,0.24057544,34623.0,34622.0,0.00540333]
[1625309190102,0.24057544,34623.0,34622.0,1.24345627]
[1625309191352,0.24057544,34623.0,34622.0,1.01499627]
[1625309192204,0.29957544,34623.0,34622.0,1.01499627]
[1625309192304,0.29957544,34623.0,34622.0,0.00540333]
[1625309193205,0.29957544,34623.0,34620.0,0.00540389]
[1625309193305,0.55483544,34623.0,34620.0,0.00540389]
[1625309193705,0.55483544,34623.0,34619.0,0.0054038]
[1625309193906,0.55483544,34623.0,34618.0,1.30456935]
[1625309194857,0.48115088,34619.0,34618.0,1.30456935]
[1625309195057,0.54015088,34619.0,34618.0,1.30456935]
[1625309195308,0.54015088,34619.0,34618.0,1.30997321]
[1625309197208,0.54015088,34619.0,34618.0,2.49043394]
[1625309198311,0.54015088,34619.0,34618.0,2.19753394]
[1625309201868,0.54015088,34619.0,34618.0,1.01707321]
[1625309202668,0.54015088,34619.0,34618.0,2.87580594]
[1625309205729,0.54015088,34619.0,34618.0,2.88436031]
[1625309208288,0.54015088,34619.0,34618.0,4.239793]
[1625309209292,0.54015088,34619.0,34618.0,2.88436031]
[1625309212049,0.54015088,34619.0,34618.0,4.24155023]
[1625309213952,0.54015088,34619.0,34618.0,2.88436031]
[1625309214402,4.22455088,34619.0,34618.0,4.24291831]
[1625309215506,4.22455088,34619.0,34618.0,4.23436394]
[1625309215754,4.22455088,34619.0,34618.0,4.24291912]
[1625309216305,4.28355088,34619.0,34618.0,4.23436394]
[1625309216407,4.58349088,34619.0,34618.0,4.23436394]
[1625309216507,4.58349088,34619.0,34618.0,2.87580594]
[1625309217107,0.89909088,34619.0,34618.0,1.69297602]
[1625309218161,0.89909088,34619.0,34618.0,2.88289231]
[1625309218259,0.59915088,34619.0,34618.0,2.88289231]
[1625309219361,0.59915088,34619.0,34618.0,1.69297602]
[1625309222877,0.59915088,34619.0,34618.0,0.68130667]
[1625309224279,0.59915088,34619.0,34618.0,1.70135907]
[1625309225179,0.59915088,34619.0,34618.0,0.68130667]
[1625309225882,0.59915088,34619.0,34618.0,0.67590281]
[1625309226131,0.59915088,34619.0,34618.0,0.68130423]
[1625309228741,1.2761878,34619.0,34618.0,0.30585142]
[1625309228989,1.2171878,34619.0,34618.0,0.30585142]
[1625309229088,0.54015088,34619.0,34618.0,2.007066]
[1625309229439,0.59915088,34619.0,34618.0,2.007066]
[1625309229888,0.59915088,34619.0,34618.0,3.19868622]
[1625309231840,1.27962874,34619.0,34618.0,3.19868622]
[1625309232341,1.1096986,34619.0,34618.0,3.70973839]
[1625309233594,2.81312294,34619.0,34618.0,2.51811817]
[1625309234547,1.7911024,34619.0,34618.0,3.71108124]
[1625309236002,1.7911024,34619.0,34618.0,5.07483071]
[1625309236551,2.81316667,34619.0,34618.0,3.71108124]
[1625309237605,3.06837667,34619.0,34618.0,3.71108124]
[1625309238505,4.26020812,34619.0,34618.0,2.51811817]
[1625309239557,5.62285654,34619.0,34618.0,1.49738942]
[1625309240107,4.26020812,34619.0,34618.0,2.52043472]
[1625309240608,4.26020812,34619.0,34618.0,1.49738942]
[1625309241164,5.62194663,34619.0,34618.0,1.49738942]
[1625309241810,3.06837667,34619.0,34618.0,2.51837013]
[1625309241909,2.81316667,34619.0,34618.0,2.51837013]
[1625309242162,4.006814,34619.0,34618.0,2.51837013]
[1625309244615,2.81316667,34619.0,34618.0,2.51837013]
[1625309245167,4.00693346,34619.0,34618.0,2.51837013]
[1625309246219,2.81316667,34619.0,34618.0,2.51837013]
[1625309246568,4.007013,34619.0,34618.0,2.51837013]
[1625309247620,2.81316667,34619.0,34618.0,3.70911068]
[1625309248121,4.00707565,34619.0,34618.0,2.51837013]
[1625309250827,2.81316667,34619.0,34618.0,3.71217576]
[1625309253888,2.81316667,34619.0,34618.0,5.07686655]
[1625309254487,2.75416667,34619.0,34618.0,5.07686655]
[1625309254941,1.7321024,34619.0,34618.0,5.07686655]
[1625309255138,1.7911024,34619.0,34618.0,5.07686655]
[1625309255790,1.7321024,34619.0,34618.0,5.07686655]
[1625309255940,1.7911024,34619.0,34618.0,5.07686655]
[1625309256041,2.81404622,34619.0,34618.0,5.07686655]
[1625309256542,2.81404622,34619.0,34618.0,3.71217576]
[1625309257592,2.81404622,34619.0,34618.0,5.07713202]
[1625309258345,4.00736483,34619.0,34618.0,3.71217576]
[1625309259497,4.28636483,34619.0,34618.0,3.71217576]
[1625309260103,5.64821634,34619.0,34618.0,2.51837013]
[1625309260502,5.64821634,34619.0,34618.0,1.49738942]
[1625309261654,5.66045199,34619.0,34618.0,1.49738942]
[1625309261754,5.66045199,34619.0,34618.0,1.19693942]
[1625309262105,5.64821634,34619.0,34618.0,1.19693942]
[1625309262205,5.64821634,34619.0,34618.0,0.85776594]
[1625309263006,5.66045218,34619.0,34618.0,0.85776594]
[1625309264060,5.64821634,34619.0,34618.0,0.85776594]
[1625309265414,5.64821634,34619.0,34618.0,0.51645359]
[1625309266015,5.64821634,34619.0,34618.0,1.19915313]
[1625309266416,5.64821634,34619.0,34618.0,0.85780561]
[1625309266967,5.6604525,34619.0,34618.0,0.85780561]
[1625309267168,5.6604525,34619.0,34618.0,0.34675344]
[1625309267268,5.7471525,34619.0,34618.0,0.34675344]
[1625309267469,5.6604525,34619.0,34618.0,0.34675344]
[1625309267670,7.19301854,34619.0,34618.0,0.8588997]
[1625309267768,7.18078238,34619.0,34618.0,0.8588997]
[1625309268168,7.18078238,34619.0,34618.0,0.51754768]
[1625309268169,5.64821634,34619.0,34618.0,0.51754768]
[1625309268619,5.64821634,34619.0,34618.0,1.20032721]
[1625309270273,5.64821634,34619.0,34618.0,2.22468169]
[1625309270874,5.73551634,34619.0,34618.0,2.22468169]
[1625309271224,5.73551634,34619.0,34618.0,2.16568169]
[1625309271326,5.67651634,34619.0,34618.0,2.16568169]
[1625309271526,7.22167314,34619.0,34618.0,1.14132721]
[1625309271929,7.22167314,34619.0,34615.0,0.34148942]
[1625309272029,7.28067314,34619.0,34615.0,0.34148942]
[1625309272131,7.19337314,34619.0,34615.0,0.34148942]
[1625309272332,0.01225217,34618.0,34616.0,0.00539266]
[1625309272479,0.13025217,34618.0,34616.0,0.00539266]
[1625309272779,5.79497139,34617.0,34615.0,0.00539284]
[1625309272881,5.91297139,34617.0,34615.0,0.00539284]
[1625309273079,5.90071894,34617.0,34615.0,0.00539284]
[1625309273329,6.02432533,34616.0,34615.0,0.00539284]
[1625309273432,6.14232533,34616.0,34615.0,0.00539284]
[1625309273831,6.15457822,34616.0,34615.0,0.00539284]
[1625309274334,6.14232533,34616.0,34615.0,0.00539284]
[1625309274683,6.23997857,34616.0,34615.0,0.00539284]
[1625309274884,6.23997857,34616.0,34614.0,0.00539331]
[1625309275185,6.22772533,34616.0,34614.0,0.00539331]
[1625309275284,0.24057544,34615.0,34614.0,0.00539331]
[1625309275385,0.29957544,34615.0,34613.0,0.00539331]
[1625309275484,0.35857544,34615.0,34613.0,0.00539331]
[1625309275585,6.13939264,34615.0,34613.0,0.34696633]
[1625309275935,6.13939264,34615.0,34614.0,0.00539331]
[1625309276135,0.35857544,34615.0,34614.0,0.00539331]
[1625309276436,0.35857544,34615.0,34613.0,0.00539773]
[1625309276686,6.12944366,34615.0,34613.0,0.00539773]
[1625309277187,5.76692581,34614.0,34613.0,0.00539773]
[1625309277289,5.82592581,34614.0,34613.0,0.00539773]
[1625309277389,5.88492581,34614.0,34613.0,0.00539773]
[1625309279692,5.88492581,34614.0,34612.0,0.00539771]
[1625309279892,5.88492581,34614.0,34613.0,0.00539768]
[1625309280191,5.88492581,34614.0,34612.0,0.00539766]
[1625309280944,5.76005386,34613.0,34612.0,0.00539766]
[1625309281142,5.87805386,34613.0,34612.0,0.00539766]
[1625309281292,6.1186293,34613.0,34612.0,0.00539766]
[1625309281794,6.1186293,34613.0,34610.0,0.34125936]
[1625309282096,6.1186293,34613.0,34609.0,0.34126208]
[1625309282295,6.1186293,34613.0,34611.0,0.00539807]
[1625309282696,1.88324078,34613.0,34610.0,0.34665921]
[1625309282950,1.88324078,34613.0,34611.0,0.0053978]
[1625309283298,0.24057544,34612.0,34611.0,0.0053978]
[1625309283396,0.35857544,34612.0,34611.0,0.0053978]
[1625309283647,4.59035402,34612.0,34611.0,0.0053978]
[1625309285653,4.59035402,34612.0,34610.0,0.00539817]
[1625309285905,4.22936694,34611.0,34610.0,0.00539817]
[1625309286105,4.28836694,34611.0,34610.0,0.00539817]
[1625309286254,4.34736694,34611.0,34610.0,0.00539817]
[1625309287209,4.34736694,34611.0,34609.0,0.34108099]
[1625309287457,0.57457544,34610.0,34609.0,0.34108099]
[1625309287607,4.85984186,34610.0,34606.0,0.34102417]
[1625309287757,4.85984186,34610.0,34609.0,0.00539856]
[1625309287957,4.85984186,34610.0,34607.0,0.0053985]
[1625309288058,9.64764186,34610.0,34607.0,0.0053985]
[1625309288259,9.64764186,34610.0,34606.0,0.34102417]
[1625309288512,9.64764186,34610.0,34607.0,0.00539865]
[1625309288810,5.42137544,34610.0,34607.0,0.00539865]
[1625309289363,0.24057544,34608.0,34607.0,0.00539865]
[1625309289461,4.46508019,34608.0,34607.0,0.00539865]